bitfinex/quotes_SOLUSD_20241110
["timestamp","ask_amount","ask_price","bid_price","bid_amount"]
[1731273550932,6.5496,204.69,204.56,36.80775965]
[1731273551134,6.5496,204.69,204.51,17.114]
[1731273551135,6.5496,204.69,204.62,36.80775965]
[1731273551338,6.5496,204.69,204.6,36.80775965]
[1731273551339,36.80775965,204.68,204.6,36.80775965]
[1731273551635,36.80775965,204.62,204.53,36.80775965]
[1731273551932,0.12549,204.61,204.53,36.80775965]
[1731273552141,36.80775965,204.6,204.53,36.80775965]
[1731273552326,0.12549,204.61,204.53,36.80775965]
[1731273552327,23.902374,204.61,204.53,36.80775965]
[1731273552529,36.80775965,204.58,204.51,17.114]
[1731273552715,23.776884,204.57,204.51,17.114]
[1731273553124,5.01289,204.61,204.51,12.2243]
[1731273553125,36.80775965,204.58,204.51,12.2243]
[1731273553325,36.80775965,204.56,204.51,12.2243]
[1731273553646,36.80775965,204.54,204.46,36.80775965]
[1731273553928,36.80775965,204.54,204.4,4.8921]
[1731273553929,23.776884,204.47,204.4,4.8921]
[1731273554139,0.12549,204.61,204.45,36.80775965]
[1731273554308,23.776884,204.59,204.52,36.80775965]
[1731273554514,28.664784,204.59,204.5,36.80775965]
[1731273554811,23.776884,204.57,204.51,4.8897]
[1731273555015,23.776884,204.59,204.51,17.114]
[1731273555223,36.80775965,204.58,204.51,12.2243]
[1731273555421,23.776884,204.57,204.51,17.114]
[1731273556614,36.80775965,204.52,204.44,36.80775965]
[1731273556817,36.80775965,204.5,204.42,36.80775965]
[1731273557132,23.776884,204.49,204.42,36.80775965]
[1731273557320,20.0,204.68,204.48,36.80775965]
[1731273557512,20.0,204.68,204.43,6.8130937]
[1731273557513,15.1705,204.71,204.63,36.80775965]
[1731273557714,20.0556,204.71,204.63,36.80775965]
[1731273558113,15.1705,204.71,204.63,36.80775965]
[1731273558335,6.1598,204.77,204.69,36.80775965]
[1731273558520,4.883,204.79,204.69,41.69295965]
[1731273558729,36.80775965,204.8,204.69,41.69295965]
[1731273559032,36.80775965,204.8,204.63,36.80775965]
[1731273559033,36.80775965,204.72,204.63,36.80775965]
[1731273559226,36.80775965,204.7,204.61,41.69505965]
[1731273559617,36.80775965,204.68,204.59,36.80775965]
[1731273559819,36.80775965,204.66,204.57,53.91605965]
[1731273560031,36.80775965,204.64,204.57,12.2201]
[1731273560332,23.776884,204.65,204.57,53.91615965]
[1731273560630,23.776884,204.67,204.59,41.69555965]
[1731273561018,36.80775965,204.64,204.57,12.2201]
[1731273561229,23.776884,204.63,204.57,53.91615965]
[1731273561732,36.80775965,204.64,204.57,12.2201]
[1731273561935,23.776884,204.63,204.55,36.80775965]
[1731273562117,36.80775965,204.62,204.53,36.80775965]
[1731273562437,23.776884,204.61,204.53,36.80775965]
[1731273563030,16.2291,204.71,204.59,36.80775965]
[1731273563232,36.80775965,204.79,204.69,36.80775965]
[1731273563642,4.8828,204.8,204.6,6.8130937]
[1731273563940,36.80775965,204.76,204.67,36.80775965]
[1731273564233,36.80775965,204.72,204.63,36.80775965]
[1731273564436,36.80775965,204.68,204.59,36.80775965]
[1731273564825,0.12549,204.67,204.63,36.80775965]
[1731273565033,36.80775965,204.72,204.63,36.80775965]
[1731273565334,36.80775965,204.72,204.65,36.80775965]
[1731273565536,36.80775965,204.72,204.63,36.80775965]
[1731273565731,0.12549,204.69,204.61,36.80775965]
[1731273566244,0.12549,204.69,204.54,17.2115]
[1731273566245,0.12549,204.69,204.64,36.80775965]
[1731273566429,36.80775965,204.72,204.64,36.80775965]
[1731273566830,0.12549,204.71,204.64,41.69425965]
[1731273567039,36.80775965,204.7,204.62,53.91215965]
[1731273567626,23.776884,204.69,204.62,53.91215965]
[1731273568939,23.776884,204.69,204.6,36.80775965]
[1731273569122,36.80775965,204.63,204.54,36.80775965]
[1731273569327,23.776884,204.62,204.56,36.80775965]
[1731273569522,23.776884,204.62,204.6,36.80775965]
[1731273569730,23.776884,204.64,204.56,36.80775965]
[1731273569937,23.776884,204.62,204.56,36.80775965]
[1731273570133,23.776884,204.62,204.47,17.1173]
[1731273570134,36.80775965,204.6,204.52,36.80775965]
[1731273570323,23.776884,204.57,204.5,36.80775965]
[1731273570641,23.776884,204.57,204.54,36.80775965]
[1731273571058,28.665284,204.57,204.46,17.1181]
[1731273571341,28.665284,204.57,204.41,24.4606]
[1731273571342,36.80775965,204.5,204.42,36.80775965]
[1731273571537,23.776884,204.49,204.44,36.80775965]
[1731273572027,23.776884,204.49,204.41,17.1221]
[1731273572028,23.776884,204.53,204.46,36.80775965]
[1731273572349,60.58464365,204.54,204.46,36.80775965]
[1731273573048,65.47374365,204.54,204.46,36.80775965]
[1731273574850,41.69815965,204.48,204.4,36.80775965]
[1731273575030,23.776884,204.47,204.4,36.80775965]
[1731273575345,4.8904,204.48,204.3,36.90775965]
[1731273575346,23.776884,204.44,204.36,36.80775965]
[1731273575538,23.776884,204.38,204.31,0.85009206]
[1731273575744,23.776884,204.38,204.31,36.80775965]
[1731273576041,23.776884,204.38,204.29,49.04505965]
[1731273576629,36.80775965,204.37,204.29,49.04505965]
[1731273576836,36.80775965,204.35,204.27,36.80775965]
[1731273577042,23.776884,204.34,204.28,36.80775965]
[1731273577233,0.1,204.44,204.23,17.1373]
[1731273577234,43.776884,204.44,204.32,36.80775965]
[1731273577435,43.776884,204.44,204.36,36.80775965]
[1731273578043,23.776884,204.42,204.34,36.80775965]
[1731273578255,36.80775965,204.37,204.28,36.80775965]
[1731273578547,23.776884,204.32,204.24,36.80775965]
[1731273579057,23.776884,204.36,204.3,36.80775965]
[1731273579352,23.776884,204.4,204.33,36.80775965]
[1731273579736,4.8921,204.41,204.35,36.80775965]
[1731273579945,16.5959,204.46,204.39,36.80775965]
[1731273580443,21.4869,204.46,204.39,36.80775965]
[1731273580639,11.5075,204.48,204.43,36.80775965]
[1731273580832,0.12549,204.47,204.43,36.80775965]
[1731273581161,4.8875,204.6,204.45,36.80775965]
[1731273581453,3.54637214,204.59,204.52,36.80775965]
[1731273581653,4.8875,204.6,204.54,36.80775965]
[1731273581951,0.12549,204.59,204.54,36.80775965]
[1731273582249,5.01339,204.59,204.52,36.80775965]
[1731273582636,36.80775965,204.64,204.54,36.80775965]
[1731273582836,36.80775965,204.62,204.52,36.80775965]
[1731273583043,36.80775965,204.64,204.54,36.80775965]
[1731273583734,36.80775965,204.6,204.5,36.80775965]
[1731273584050,0.12549,204.59,204.5,36.80775965]
[1731273584254,36.80775965,204.54,204.45,41.69865965]
[1731273584557,36.80775965,204.52,204.43,53.92795965]
[1731273584852,23.776884,204.51,204.43,53.92795965]
[1731273585053,23.776884,204.49,204.43,12.2286]
[1731273585359,23.776884,204.51,204.43,53.92795965]
[1731273585555,23.776884,204.51,204.43,49.03635965]
[1731273586557,23.776884,204.51,204.43,12.2286]
[1731273586734,23.776884,204.51,204.43,53.92795965]
[1731273587054,4.8899,204.5,204.43,12.2286]
[1731273587247,23.776884,204.49,204.43,12.2286]
[1731273587556,23.776884,204.51,204.47,36.80775965]
[1731273588361,4.8886,204.56,204.47,36.80775965]
[1731273588654,36.93324965,204.55,204.45,41.69865965]
[1731273588836,36.80775965,204.53,204.45,41.69865965]
[1731273589037,36.80775965,204.49,204.39,36.80775965]
[1731273589843,23.776884,204.48,204.39,36.80775965]
[1731273590042,23.776884,204.48,204.4,17.1232]
[1731273590241,23.776884,204.5,204.41,36.80775965]
[1731273590446,36.80775965,204.47,204.39,36.80775965]
[1731273590754,23.776884,204.46,204.37,36.80775965]
[1731273591055,23.776884,204.42,204.35,49.04145965]
[1731273591257,23.776884,204.42,204.35,53.93495965]
[1731273592137,23.776884,204.42,204.4,36.80775965]
[1731273592348,23.776884,204.49,204.4,73.6155193]
[1731273592536,41.69695965,204.54,204.47,36.80775965]
[1731273592857,4.888,204.58,204.49,36.80775965]
[1731273593057,41.69575965,204.58,204.49,36.80775965]
[1731273593440,0.12549,204.53,204.47,36.80775965]
[1731273594066,4.8894,204.52,204.47,36.80775965]
[1731273594355,23.902374,204.53,204.47,36.80775965]
[1731273595963,23.776884,204.51,204.43,4.8914]
[1731273596273,23.776884,204.45,204.38,36.80775965]
[1731273596569,23.776884,204.43,204.36,49.04075965]
[1731273596948,23.776884,204.43,204.34,4.8936]
[1731273596949,36.80775965,204.42,204.34,36.80775965]
[1731273597252,36.80775965,204.48,204.4,36.80775965]
[1731273597467,36.80775965,204.48,204.31,12.2359]
[1731273597468,23.776884,204.49,204.44,36.80775965]
[1731273597772,41.69715965,204.52,204.44,36.80775965]
[1731273597961,41.69685965,204.54,204.46,36.80775965]
[1731273598147,36.80775965,204.56,204.48,36.80775965]
[1731273598347,41.69575965,204.58,204.5,36.80775965]
[1731273598566,41.69575965,204.58,204.48,36.80775965]
[1731273598755,36.80775965,204.56,204.48,36.80775965]
[1731273598950,16.5959,204.6,204.5,36.80775965]
[1731273599265,41.69525965,204.61,204.52,36.80775965]
[1731273599466,36.80775965,204.59,204.52,36.80775965]
[1731273599669,36.80775965,204.61,204.52,36.80775965]
[1731273599875,36.80775965,204.54,204.45,6.67519619]
[1731273600053,36.80775965,204.56,204.46,36.80775965]
[1731273600245,4.887,204.63,204.5,36.80775965]
[1731273600565,0.1,204.53,204.35,41.5948]
[1731273600770,0.2,204.48,204.29,12.2373]
[1731273601001,0.1,204.48,204.29,12.2373]
[1731273601166,0.2,204.51,204.29,12.2373]
[1731273601375,3.56603215,204.5,204.29,12.2373]
[1731273601667,23.776884,204.45,204.38,36.80775965]
[1731273601881,36.80775965,204.48,204.4,53.93075965]
[1731273602054,4.8902,204.5,204.31,0.1]
[1731273602055,23.776884,204.43,204.36,36.80775965]
[1731273602753,23.776884,204.45,204.36,36.80775965]
[1731273602955,23.776884,204.47,204.4,36.80775965]
[1731273604171,28.667684,204.47,204.39,4.8923]
[1731273604552,28.667684,204.47,204.35,12.2336]
[1731273604553,23.776884,204.41,204.35,12.2336]
[1731273604863,23.776884,204.35,204.24,36.80775965]
[1731273605050,36.80775965,204.34,204.26,36.80775965]
[1731273605255,48.667784,204.46,204.31,36.80775965]
[1731273605481,48.667784,204.46,204.25,41.6154]
[1731273605482,23.776884,204.42,204.25,17.1356]
[1731273605656,36.80775965,204.33,204.25,17.1356]
[1731273605976,23.776884,204.26,204.2,12.2427]
[1731273606278,36.80775965,204.23,204.16,4.898]
[1731273606655,36.80775965,204.21,204.15,17.1439]
[1731273606853,36.80775965,204.27,204.19,36.80775965]
[1731273607076,23.776884,204.26,204.2,4.8971]
[1731273607468,23.776884,204.26,204.17,36.80775965]
[1731273607653,23.776884,204.26,204.15,12.2456]
[1731273607654,23.776884,204.22,204.15,12.2456]
[1731273607857,36.80775965,204.17,204.09,12.2489]
[1731273608062,36.80775965,204.2,204.09,12.2489]
[1731273608063,36.80775965,204.14,204.09,12.2489]
[1731273608375,23.776884,204.19,204.11,36.80775965]
[1731273608857,23.776884,204.17,204.09,49.05665965]
[1731273609057,36.80775965,204.16,204.09,12.2489]
[1731273609260,36.80775965,204.14,204.09,12.2489]
[1731273609564,23.776884,204.17,204.09,49.05665965]
[1731273609763,36.80775965,204.22,204.13,36.80775965]
[1731273610073,36.80775965,204.26,204.17,36.80775965]
[1731273610374,16.6394,204.33,204.11,0.1]
[1731273610375,36.80775965,204.24,204.15,36.80775965]
[1731273611259,36.80775965,204.28,204.19,36.80775965]
[1731273611873,4.8942,204.32,204.19,36.80775965]
[1731273612069,36.80775965,204.26,204.19,36.80775965]
[1731273612263,4.8942,204.32,204.16,12.2452]
[1731273612264,36.80775965,204.22,204.16,12.2452]
[1731273612472,36.80775965,204.18,204.1,12.2483]
[1731273612785,36.80775965,204.2,204.11,49.05595965]
[1731273613283,5.02139,204.25,204.11,49.05595965]
[1731273613284,36.80775965,204.18,204.11,12.2482]
[1731273613784,36.80775965,204.16,204.11,12.2482]
[1731273613956,36.80775965,204.12,204.05,12.2514]
[1731273614163,36.80775965,204.1,204.05,12.2514]
[1731273614363,36.80775965,204.12,204.05,12.2514]
[1731273614558,36.80775965,204.06,204.0,4.9019]
[1731273614989,36.80775965,204.12,204.02,36.80775965]
[1731273615279,36.80775965,204.1,204.0,53.96455965]
[1731273615662,36.80775965,204.16,204.06,36.80775965]
[1731273615865,60.58464365,204.16,204.06,36.80775965]
[1731273616084,36.80775965,204.14,204.04,36.80775965]
[1731273616303,36.80775965,204.12,204.05,4.9007]
[1731273616577,36.80775965,204.12,204.0,36.7647]
[1731273616578,23.776884,204.11,204.03,4.9011]
[1731273617379,36.80775965,204.06,204.0,12.2549]
[1731273617582,23.776884,204.09,204.01,36.80775965]
[1731273617773,36.80775965,204.06,204.0,12.2549]
[1731273617966,23.776884,204.05,203.97,36.80775965]
[1731273618175,36.80775965,204.06,203.97,36.80775965]
[1731273618370,23.776884,204.05,203.98,4.9024]
[1731273618765,36.80775965,204.12,204.03,36.80775965]
[1731273618967,4.8983,204.15,203.98,17.1585]
[1731273618968,36.80775965,204.1,204.01,36.80775965]
[1731273619293,23.776884,204.09,204.03,36.80775965]
[1731273619473,23.776884,204.09,204.01,36.80775965]
[1731273619986,23.776884,204.09,204.02,4.9014]
[1731273620799,36.80775965,204.06,203.98,17.1584]
[1731273621285,36.80775965,204.03,203.98,17.1584]
[1731273621587,36.80775965,204.03,203.98,12.2561]
[1731273621793,36.80775965,204.05,203.98,17.1585]
[1731273621971,36.80775965,204.05,203.97,36.80775965]
[1731273622298,15.6509,204.16,203.95,4.9029]
[1731273622299,36.80775965,204.11,204.01,36.80775965]
[1731273622685,4.8983,204.15,204.01,36.80775965]
[1731273622686,36.80775965,204.09,204.01,36.80775965]
[1731273622985,36.80775965,204.05,204.0,12.2546]
[1731273623570,36.80775965,204.07,204.0,12.2546]
[1731273623771,23.776884,204.08,204.0,49.06235965]
[1731273623995,36.80775965,204.07,204.0,12.2546]
[1731273624178,23.776884,204.06,204.0,12.2546]
[1731273624573,36.80775965,204.09,204.0,49.06235965]
[1731273624768,36.80775965,204.11,204.02,36.80775965]
[1731273624972,36.80775965,204.15,204.0,18.49458364]
[1731273625167,36.80775965,204.11,204.0,18.59458364]
[1731273625385,16.34560504,204.19,204.09,36.80775965]
[1731273625585,53.15336469,204.19,204.09,36.80775965]
[1731273625788,36.80775965,204.24,204.15,36.80775965]
[1731273625972,23.97126501,204.3,204.1,36.80775965]
[1731273625973,36.80775965,204.19,204.1,36.80775965]
[1731273626580,4.8981,204.16,204.08,36.80775965]
[1731273626789,36.80775965,204.15,204.06,36.80775965]
[1731273627180,36.80775965,204.13,204.05,12.2517]
[1731273627382,36.80775965,204.15,204.06,36.80775965]
[1731273627577,36.80775965,204.19,204.1,36.80775965]
[1731273628283,36.80775965,204.21,204.12,36.80775965]
[1731273628481,36.80775965,204.19,204.1,36.80775965]
[1731273628991,36.80775965,204.19,204.11,4.8993]
[1731273629195,41.70515965,204.19,204.11,4.8993]
[1731273629574,23.776884,204.2,204.12,36.80775965]
[1731273629784,36.80775965,204.19,204.11,23.38748364]
[1731273630100,36.80775965,204.25,204.16,36.80775965]
[1731273630275,41.70325965,204.27,204.18,36.80775965]
[1731273630594,36.80775965,204.29,204.2,36.80775965]
[1731273630776,36.80775965,204.27,204.19,6.50720586]
[1731273630977,36.80775965,204.27,204.18,12.244]
[1731273631277,36.80775965,204.25,204.16,36.80775965]
[1731273632105,36.80775965,204.19,204.1,36.80775965]
[1731273632391,36.80775965,204.19,204.09,12.2491]
[1731273632392,36.80775965,204.11,204.06,4.9005]
[1731273632576,36.80775965,204.13,204.06,17.1517]
[1731273633195,36.80775965,204.11,204.06,17.1517]
[1731273633377,36.80775965,204.11,204.06,12.2512]
[1731273633577,36.80775965,204.09,204.06,12.2512]
[1731273633797,36.80775965,204.11,204.06,12.2512]
[1731273634185,6.0837,204.22,204.08,36.80775965]
[1731273634186,36.80775965,204.17,204.08,36.80775965]
[1731273634387,36.80775965,204.19,204.1,36.80775965]
[1731273634594,36.80775965,204.24,204.14,36.80775965]
[1731273634981,36.80775965,204.22,204.15,17.1441]
[1731273635693,36.80775965,204.22,204.12,41.70665965]
[1731273635871,36.80775965,204.22,204.14,36.80775965]
[1731273636071,36.80775965,204.22,204.12,11.40610586]
[1731273636072,36.80775965,204.22,204.12,41.70665965]
[1731273636273,36.80775965,204.24,204.16,36.80775965]
[1731273636585,4.8946,204.31,204.2,36.80775965]
[1731273636781,36.80775965,204.26,204.2,6.50720586]
[1731273636979,36.80775965,204.24,204.17,17.1423]
[1731273637292,36.80775965,204.26,204.17,53.95005965]
[1731273637501,36.80775965,204.28,204.19,36.80775965]
[1731273637679,36.80775965,204.28,204.19,43.31496551]
[1731273637874,36.80775965,204.26,204.19,6.50720586]
[1731273638078,36.80775965,204.26,204.17,60.45726551]
[1731273638518,36.80775965,204.28,204.19,36.80775965]
[1731273638996,36.80775965,204.28,204.2,17.1399]
[1731273639499,36.80775965,204.28,204.21,36.80775965]
[1731273639682,6.0837,204.37,204.23,36.80775965]
[1731273639683,36.80775965,204.32,204.23,36.80775965]
[1731273639883,36.80775965,204.34,204.25,36.80775965]
[1731273640086,36.80775965,204.36,204.27,36.80775965]
[1731273640282,36.80775965,204.36,204.27,43.31496551]
[1731273640487,36.80775965,204.32,204.28,6.50720586]
[1731273640693,36.80775965,204.32,204.23,36.80775965]
[1731273641095,36.80775965,204.32,204.24,17.1367]
[1731273642002,36.90775965,204.4,204.24,17.1367]
[1731273642003,36.80775965,204.3,204.24,17.1367]
[1731273642180,36.80775965,204.36,204.27,36.80775965]
[1731273642384,36.80775965,204.36,204.27,43.56774329]
[1731273642691,36.80775965,204.36,204.28,6.75998364]
[1731273643084,36.80775965,204.36,204.27,36.80775965]
[1731273643302,36.80775965,204.36,204.28,17.1333]
[1731273643882,36.80775965,204.36,204.29,6.75998364]
[1731273644099,36.80775965,204.38,204.28,17.1333]
[1731273644299,36.80775965,204.38,204.28,23.89328364]
[1731273644700,36.80775965,204.36,204.28,17.1333]
[1731273645002,36.80775965,204.34,204.28,17.1333]
[1731273645183,36.80775965,204.34,204.28,12.2381]
[1731273645584,12.2285,204.44,204.28,12.2381]
[1731273645585,5.89746966,204.53,204.3,36.80775965]
[1731273645895,6.1837,204.54,204.36,36.80775965]
[1731273645896,36.80775965,204.46,204.36,36.80775965]
[1731273646197,36.80775965,204.46,204.37,6.75998364]
[1731273646398,36.80775965,204.5,204.4,36.80775965]
[1731273646709,36.80775965,204.54,204.44,36.80775965]
[1731273646881,36.80775965,204.5,204.44,6.99831697]
[1731273647087,36.80775965,204.48,204.38,36.80775965]
[1731273647284,36.80775965,204.42,204.35,4.8934]
[1731273647583,15.86161644,204.47,204.28,0.1]
[1731273648006,0.22549,204.49,204.28,6.73785586]
[1731273648181,36.80775965,204.4,204.3,36.80775965]
[1731273648585,36.80775965,204.4,204.32,36.80775965]
[1731273649184,36.80775965,204.42,204.32,36.80775965]
[1731273649398,36.80775965,204.38,204.31,12.2363]
[1731273649607,4.8916,204.43,204.31,12.2363]
[1731273649608,36.80775965,204.4,204.31,12.2363]
[1731273650210,36.80775965,204.42,204.32,36.80775965]
[1731273650382,36.80775965,204.44,204.34,36.80775965]
[1731273650706,36.80775965,204.44,204.35,17.1274]
[1731273651014,36.80775965,204.48,204.38,36.80775965]
[1731273651184,36.80775965,204.5,204.4,36.80775965]
[1731273651999,12.2192,204.6,204.4,36.80775965]
[1731273652206,4.39654354,205.89,204.4,36.80775965]
[1731273652207,36.80775965,204.71,204.64,0.849]
[1731273652383,3.56122659,204.7,204.64,0.849]
[1731273652702,16.16295767,204.79,204.64,0.849]
[1731273652909,36.80775965,204.69,204.64,0.849]
[1731273653203,36.80775965,204.73,204.64,0.849]
[1731273653549,36.80775965,204.69,204.64,0.849]
[1731273654009,36.80775965,204.71,204.64,0.849]
[1731273654514,36.80775965,204.69,204.64,0.849]
[1731273654813,36.80775965,204.67,204.64,0.849]
[1731273655494,5.01139,204.68,204.64,0.849]
[1731273655692,4.8859,204.68,204.64,0.849]
[1731273656207,0.12549,204.67,204.64,0.849]
[1731273656410,36.93324965,204.67,204.64,0.849]
[1731273656706,36.80775965,204.66,204.64,0.849]
[1731273657099,0.12549,204.65,204.64,0.849]
[1731273657408,0.12549,204.65,204.46,0.1]
[1731273657708,0.12549,204.65,204.44,6.0463]
[1731273657709,36.80775965,204.58,204.5,0.1]
[1731273658088,36.80775965,204.6,204.52,0.1]
[1731273658403,43.776884,204.64,204.55,0.1]
[1731273658606,36.80775965,204.61,204.52,36.90775965]
[1731273658916,36.80775965,204.55,204.47,12.2267]
[1731273659086,0.12549,204.65,204.58,0.1]
[1731273659287,23.902374,204.65,204.58,36.90775965]
[1731273659503,23.902374,204.65,204.59,0.1]
[1731273660203,23.776884,204.65,204.59,0.1]
[1731273660519,23.776884,204.65,204.48,6.32179022]
[1731273660520,36.80775965,204.62,204.54,0.1]
[1731273660803,23.776884,204.61,204.54,0.1]
[1731273661008,23.776884,204.63,204.55,5.0887]
[1731273661229,36.80775965,204.68,204.61,0.1]
[1731273661411,36.80775965,204.7,204.63,0.1]
[1731273661905,36.80775965,204.66,204.59,0.1]
[1731273662502,36.80775965,204.68,204.58,36.80775965]
[1731273662702,36.80775965,204.68,204.56,0.1]
[1731273662703,36.80775965,204.62,204.56,0.1]
[1731273662905,36.80775965,204.62,204.56,0.2]
[1731273663296,36.80775965,204.62,204.47,25.588853]
[1731273663297,23.776884,204.61,204.52,41.79715965]
[1731273663497,23.776884,204.57,204.5,0.1]
[1731273663810,23.776884,204.57,204.5,0.2]
[1731273663991,23.776884,204.57,204.49,12.2251]
[1731273664192,23.776884,204.57,204.51,0.1]
[1731273664193,23.776884,204.55,204.51,0.1]
[1731273664691,12.216,204.65,204.52,0.1]
[1731273664894,36.80775965,204.58,204.5,0.1]
[1731273665119,23.776884,204.57,204.49,36.90775965]
[1731273665427,36.80775965,204.55,204.5,0.1]
[1731273665617,23.776884,204.54,204.49,36.90775965]
[1731273665919,60.58464365,204.57,204.5,0.1]
[1731273666118,36.80775965,204.54,204.5,0.1]
[1731273666615,36.80775965,204.52,204.45,12.2279]
[1731273666813,36.80775965,204.54,204.47,0.1]
[1731273667207,6.6593,204.73,204.53,0.1]
[1731273667404,36.80775965,204.63,204.56,0.2]
[1731273667611,36.80775965,204.6,204.54,0.1]
[1731273667816,36.80775965,204.56,204.51,0.1]
[1731273668207,36.80775965,204.56,204.48,0.1]
[1731273668406,36.80775965,204.52,204.46,0.1]
[1731273668613,36.80775965,204.48,204.42,0.1]
[1731273668798,43.902374,204.66,204.52,0.1]
[1731273669000,4.8863,204.65,204.54,0.2]
[1731273669219,4.8863,204.65,204.56,0.1]
[1731273669517,25.50494099,204.69,204.68,0.2]
[1731273669716,16.13150652,204.83,204.75,0.1]
[1731273669919,16.13150652,204.83,204.79,0.1]
[1731273670108,16.13150652,204.83,204.82,0.1]
[1731273670319,36.80775965,205.01,204.93,0.2]
[1731273670520,36.80775965,204.95,204.91,0.1]
[1731273670915,36.80775965,204.92,204.88,0.1]
[1731273671106,16.16273875,205.05,204.83,0.1]
[1731273671304,16.16273875,205.05,204.8,0.1]
[1731273671305,36.80775965,204.87,204.8,0.1]
[1731273671512,36.80775965,204.85,204.8,0.1]
[1731273671705,36.80775965,204.85,204.78,0.1]
[1731273671912,36.80775965,204.85,204.83,0.1]
[1731273672326,36.80775965,205.0,204.83,0.1]
[1731273672511,36.80775965,205.0,204.79,0.1]
[1731273672512,36.80775965,204.85,204.79,0.1]
[1731273672715,36.80775965,204.81,204.78,0.1]
[1731273673117,16.39665219,204.95,204.83,0.1]
[1731273673429,36.80775965,204.85,204.7,0.1]
[1731273673616,36.80775965,204.74,204.69,12.2133]
[1731273673934,16.11300938,204.92,204.69,1.2166712]
[1731273674235,16.11300938,204.92,204.69,1.1166712]
[1731273674236,0.12549,204.91,204.69,1.1166712]
[1731273674408,43.776884,204.89,204.69,1.1166712]
[1731273674614,43.776884,204.87,204.69,1.1166712]
[1731273674811,17.0847,204.86,204.69,1.1166712]
[1731273675038,36.80775965,204.7,204.69,1.1166712]
[1731273675410,60.58464365,204.7,204.69,1.1166712]
[1731273675611,23.776884,204.84,204.69,1.1166712]
[1731273676122,23.776884,204.74,204.69,1.1166712]
[1731273676630,41.4916,204.86,204.7,0.1]
[1731273676631,17.0847,204.86,204.7,0.1]
[1731273676927,4.8811,204.87,204.71,0.1]
[1731273677232,36.80775965,204.78,204.71,0.1]
[1731273678732,36.80775965,204.82,204.74,0.1]
[1731273678917,4.8823,204.83,204.74,36.90775965]
[1731273679111,36.80775965,204.84,204.76,0.2]
[1731273679315,36.80775965,204.9,204.71,12.2123]
[1731273679316,36.80775965,204.8,204.71,12.2123]
[1731273679633,36.80775965,204.76,204.72,0.1]
[1731273679815,36.80775965,204.76,204.69,6.0020712]
[1731273679816,17.0822,204.89,204.75,0.2]
[1731273680020,17.0822,204.89,204.72,0.1]
[1731273680021,36.80775965,204.79,204.72,0.1]
[1731273680337,36.80775965,204.81,204.72,0.1]
[1731273681217,41.69035965,204.81,204.72,0.1]
[1731273681420,41.69035965,204.81,204.72,1.21650756]
[1731273681847,41.69035965,204.81,204.74,0.1]
[1731273682212,12.2016,204.89,204.72,6.00100756]
[1731273682213,12.1983,204.95,204.78,37.00775965]
[1731273682411,36.80775965,204.88,204.78,37.00775965]
[1731273683336,4.8811,204.87,204.78,37.00775965]
[1731273683518,23.776884,204.86,204.8,0.1]
[1731273683915,60.58464365,204.86,204.78,36.80775965]
[1731273684237,20.12549,204.85,204.76,0.1]
[1731273684413,36.80775965,204.84,204.76,0.2]
[1731273684619,4.8811,204.87,204.78,0.1]
[1731273684815,4.8787,204.97,204.82,0.1]
[1731273685029,36.80775965,204.94,204.86,0.1]
[1731273685230,36.80775965,204.92,204.88,0.1]
[1731273685422,36.80775965,204.9,204.82,0.1]
[1731273685624,36.80775965,204.84,204.78,1.11618043]
[1731273685936,36.80775965,204.82,204.78,1.21618043]
[1731273686141,36.80775965,204.82,204.78,1.11618043]
[1731273686447,36.80775965,204.8,204.78,1.11618043]
[1731273687219,36.80775965,204.8,204.74,0.1]
[1731273687541,36.80775965,204.76,204.73,0.1]
[1731273687744,36.80775965,204.76,204.68,17.1993]
[1731273687745,36.80775965,204.74,204.68,0.1]
[1731273688036,36.80775965,204.7,204.65,0.1]
[1731273688217,36.80775965,204.68,204.63,0.1]
[1731273688421,36.80775965,204.66,204.63,0.1]
[1731273688626,20.0,204.77,204.66,0.1]
[1731273688837,36.80775965,204.72,204.66,0.1]
[1731273689141,36.80775965,204.7,204.64,6.92249744]
[1731273689325,36.80775965,204.66,204.61,12.3183]
[1731273689637,36.80775965,204.66,204.58,0.2]
[1731273689842,36.80775965,204.64,204.58,1.21727162]
[1731273690020,36.80775965,204.64,204.58,1.11727162]